fUSD/lending_fUSD_20260606
["ID","MTS","AMOUNT","RATE_DAILY","PERIOD"]
[424260614,1780708238000,-499.01929766,0.00010105,2]
[424260616,1780708238000,-209.51728305,0.00010105,2]
[424260617,1780708238000,-150.0,0.00010257,2]
[424260613,1780708238000,-4000.0,0.00010027,2]
[424260608,1780708238000,-420.0,9.883e-05,2]
[424260619,1780708238000,-166.66,0.00010327,2]
[424260610,1780708238000,-160.0,9.888e-05,2]
[424260618,1780708238000,-4000.0,0.00010278,2]
[424260600,1780708238000,-19140.4,9.673e-05,2]
[424260602,1780708238000,-24999.99,9.673e-05,2]
[424260604,1780708238000,-4999.99,9.673e-05,2]
[424260606,1780708238000,-9999.99,9.673e-05,2]
[424260603,1780708238000,-150.99,9.673e-05,2]
[424260601,1780708238000,-48618.0,9.673e-05,2]
[424260599,1780708238000,-1285580.82133053,9.673e-05,2]
[424260597,1780708238000,-948.94767356,9.673e-05,2]
[424260598,1780708238000,-449988.88263637,9.673e-05,2]
[424260596,1780708238000,-3431.39827791,9.673e-05,2]
[424260595,1780708238000,-1332.00926807,9.673e-05,2]
[424260594,1780708238000,-735.30399282,9.673e-05,2]
[424260622,1780708238000,-4000.0,0.00010529,2]
[424260605,1780708238000,-299.99,9.673e-05,2]
[424260624,1780708238000,-151.25,0.00010562,2]
[424260607,1780708238000,-151.0,9.77e-05,2]
[424260627,1780708238000,-166.66,0.00010668,2]
[424260631,1780708238000,-267.0,0.00010871,2]
[424260678,1780708238000,-334.47761655,0.00011493,2]
[424260674,1780708238000,-150.0,0.0001128,2]
[424260676,1780708238000,-166.66,0.0001135,2]
[424260672,1780708238000,-980.68,0.0001122,2]
[424260680,1780708238000,-2000.0,0.00011659,2]
[424260670,1780708238000,-412.86,0.0001122,2]
[424260668,1780708238000,-490.91,0.0001122,2]
[424260664,1780708238000,-288.42,0.0001122,2]
[424260651,1780708238000,-390.87,0.00010989,2]
[424260657,1780708238000,-10210.91,0.0001105,2]
[424260647,1780708238000,-240.01,0.00010989,2]
[424260643,1780708238000,-1425.41,0.00010989,2]
[424260666,1780708238000,-683.19,0.0001122,2]
[424260659,1780708238000,-39468.26079031,0.00011099,2]
[424260649,1780708238000,-2000.0,0.00010989,2]
[424260635,1780708238000,-150.0,0.00010959,2]
[424260629,1780708238000,-4000.0,0.00010779,2]
[424260620,1780708238000,-2000.0,0.00010493,2]
[424260639,1780708238000,-150.0,0.00010989,2]
[424260633,1780708238000,-150.0,0.00010959,2]
[424260637,1780708238000,-543.49,0.00010989,2]
[424260655,1780708238000,-4000.0,0.0001103,2]
[424260661,1780708238000,-60016.73136671,0.00011099,2]
[424260653,1780708238000,-166.66,0.00011009,2]
[424260645,1780708238000,-1085.78,0.00010989,2]
[424260641,1780708238000,-1726.59,0.00010989,2]
[424260754,1780708239000,-500.0,0.00013425,2]
[424260765,1780708239000,-500.0,0.00013425,2]
[424260752,1780708239000,-636.18712205,0.00013425,2]
[424260756,1780708239000,-500.0,0.00013425,2]
[424260763,1780708239000,-500.0,0.00013425,2]
[424260744,1780708239000,-500.0,0.00013425,2]
[424260746,1780708239000,-500.0,0.00013425,2]
[424260750,1780708239000,-500.0,0.00013425,2]
[424260761,1780708239000,-500.0,0.00013425,2]
[424260758,1780708239000,-500.0,0.00013425,2]
[424260767,1780708239000,-508.70425749,0.00013425,2]
[424260748,1780708239000,-500.0,0.00013425,2]
[424260769,1780708239000,-500.0,0.00013425,2]
[424260794,1780708239000,-500.0,0.00013425,2]
[424260780,1780708239000,-500.0,0.00013425,2]
[424260773,1780708239000,-500.0,0.00013425,2]
[424260774,1780708239000,-500.0,0.00013425,2]
[424260784,1780708239000,-500.0,0.00013425,2]
[424260778,1780708239000,-500.0,0.00013425,2]
[424260782,1780708239000,-500.0,0.00013425,2]
[424260776,1780708239000,-500.0,0.00013425,2]
[424260786,1780708239000,-500.0,0.00013425,2]
[424260788,1780708239000,-500.0,0.00013425,2]
[424260790,1780708239000,-500.0,0.00013425,2]
[424260792,1780708239000,-500.0,0.00013425,2]
[424260740,1780708239000,-500.0,0.00013425,2]
[424260796,1780708239000,-500.0,0.00013425,2]
[424260771,1780708239000,-150.0,0.00013425,2]
[424260742,1780708239000,-500.0,0.00013425,2]
[424260704,1780708239000,-500.0,0.00013425,2]
[424260734,1780708239000,-500.0,0.00013425,2]
[424260686,1780708239000,-166.66,0.00012032,2]
[424260683,1780708239000,-60016.73136667,0.00012018,2]
[424260688,1780708239000,-323.00393276,0.00012138,2]
[424260690,1780708239000,-39468.26079027,0.0001222,2]
[424260692,1780708239000,-478.92,0.00012329,2]
[424260694,1780708239000,-152.0,0.00012774,2]
[424260696,1780708239000,-2000.0,0.00012824,2]
[424260706,1780708239000,-500.0,0.00013425,2]
[424260807,1780708239000,-500.0,0.00013425,2]
[424260708,1780708239000,-500.0,0.00013425,2]
[424260698,1780708239000,-150.0,0.00013425,2]
[424260710,1780708239000,-500.0,0.00013425,2]
[424260714,1780708239000,-500.0,0.00013425,2]
[424260712,1780708239000,-500.0,0.00013425,2]
[424260702,1780708239000,-297.10471608,0.00013425,2]
[424260700,1780708239000,-150.0,0.00013425,2]
[424260718,1780708239000,-500.0,0.00013425,2]
[424260716,1780708239000,-500.0,0.00013425,2]
[424260723,1780708239000,-182.6847098,0.00013425,2]
[424260721,1780708239000,-500.0,0.00013425,2]
[424260725,1780708239000,-500.0,0.00013425,2]
[424260731,1780708239000,-500.0,0.00013425,2]
[424260682,1780708239000,-166.66,0.00011691,2]
[424260729,1780708239000,-442.63494967,0.00013425,2]
[424260726,1780708239000,-500.0,0.00013425,2]
[424260736,1780708239000,-500.0,0.00013425,2]
[424260732,1780708239000,-500.0,0.00013425,2]
[424260738,1780708239000,-500.0,0.00013425,2]
[424260802,1780708239000,-500.0,0.00013425,2]
[424260878,1780708239000,-500.0,0.00013698,2]
[424260809,1780708239000,-500.0,0.00013425,2]
[424260870,1780708239000,-500.0,0.00013698,2]
[424260872,1780708239000,-500.0,0.00013698,2]
[424260882,1780708239000,-500.0,0.00013698,2]
[424260876,1780708239000,-564.51,0.00013698,2]
[424260880,1780708239000,-500.0,0.00013698,2]
[424260874,1780708239000,-500.0,0.00013698,2]
[424260884,1780708239000,-500.0,0.00013698,2]
[424260890,1780708239000,-500.0,0.00013698,2]
[424260886,1780708239000,-500.0,0.00013698,2]
[424260888,1780708239000,-500.0,0.00013698,2]
[424260892,1780708239000,-500.0,0.00013698,2]
[424260905,1780708239000,-500.0,0.00013698,2]
[424260895,1780708239000,-500.0,0.00013698,2]
[424260898,1780708239000,-500.0,0.00013698,2]
[424260907,1780708239000,-500.0,0.00013698,2]
[424260903,1780708239000,-500.0,0.00013698,2]
[424260900,1780708239000,-610.28940694,0.00013698,2]
[424260897,1780708239000,-500.0,0.00013698,2]
[424260909,1780708239000,-500.0,0.00013698,2]
[424260915,1780708239000,-500.0,0.00013698,2]
[424260913,1780708239000,-500.0,0.00013698,2]
[424260917,1780708239000,-500.0,0.00013698,2]
[424260919,1780708239000,-500.0,0.00013698,2]
[424260925,1780708239000,-267.89842481,0.00013698,2]
[424260923,1780708239000,-500.0,0.00013698,2]
[424260921,1780708239000,-500.0,0.00013698,2]
[424260804,1780708239000,-500.0,0.00013425,2]
[424260864,1780708239000,-500.0,0.00013425,2]
[424260866,1780708239000,-500.0,0.00013425,2]
[424260911,1780708239000,-500.0,0.00013698,2]
[424260862,1780708239000,-500.0,0.00013425,2]
[424260868,1780708239000,-222.0,0.00013425,2]
[424260801,1780708239000,-500.0,0.00013425,2]
[424260798,1780708239000,-500.0,0.00013425,2]
[424260811,1780708239000,-500.0,0.00013425,2]
[424260818,1780708239000,-500.0,0.00013425,2]
[424260813,1780708239000,-500.0,0.00013425,2]
[424260816,1780708239000,-500.0,0.00013425,2]
[424260820,1780708239000,-500.0,0.00013425,2]
[424260822,1780708239000,-500.0,0.00013425,2]
[424260826,1780708239000,-500.0,0.00013425,2]
[424260828,1780708239000,-500.0,0.00013425,2]
[424260830,1780708239000,-500.0,0.00013425,2]
[424260832,1780708239000,-500.0,0.00013425,2]
[424260824,1780708239000,-503.41003638,0.00013425,2]
[424260840,1780708239000,-500.0,0.00013425,2]
[424260834,1780708239000,-592.63364862,0.00013425,2]
[424260858,1780708239000,-500.0,0.00013425,2]
[424260854,1780708239000,-500.0,0.00013425,2]
[424260852,1780708239000,-150.0,0.00013425,2]
[424260846,1780708239000,-500.0,0.00013425,2]
[424260856,1780708239000,-500.0,0.00013425,2]
[424260860,1780708239000,-500.0,0.00013425,2]
[424260848,1780708239000,-500.0,0.00013425,2]
[424260844,1780708239000,-500.0,0.00013425,2]
[424260836,1780708239000,-500.0,0.00013425,2]
[424260842,1780708239000,-500.0,0.00013425,2]
[424260838,1780708239000,-500.0,0.00013425,2]
[424260850,1780708239000,-351.87413562,0.00013425,2]
[424261022,1780708240000,-500.0,0.00013699,2]
[424261017,1780708240000,-500.0,0.00013699,2]
[424261000,1780708240000,-382.0,0.00013699,2]
[424261002,1780708240000,-382.0,0.00013699,2]
[424261004,1780708240000,-382.0,0.00013699,2]
[424261013,1780708240000,-395.0,0.00013699,2]
[424261007,1780708240000,-382.0,0.00013699,2]
[424261011,1780708240000,-462.0,0.00013699,2]
[424261009,1780708240000,-382.0,0.00013699,2]
[424260996,1780708240000,-200.0,0.00013699,2]
[424260994,1780708240000,-2500.0,0.00013699,2]
[424260978,1780708240000,-500.0,0.00013698,2]
[424260998,1780708240000,-166.66,0.00013699,2]
[424261015,1780708240000,-405.0,0.00013699,2]
[424261062,1780708240000,-500.0,0.00013699,2]
[424261026,1780708240000,-500.0,0.00013699,2]
[424261037,1780708240000,-500.0,0.00013699,2]
[424261035,1780708240000,-500.0,0.00013699,2]
[424261028,1780708240000,-500.0,0.00013699,2]
[424261041,1780708240000,-500.0,0.00013699,2]
[424261030,1780708240000,-500.0,0.00013699,2]
[424261039,1780708240000,-500.0,0.00013699,2]
[424261043,1780708240000,-500.0,0.00013699,2]
[424261045,1780708240000,-500.0,0.00013699,2]
[424261032,1780708240000,-500.0,0.00013699,2]
[424261047,1780708240000,-500.0,0.00013699,2]
[424261049,1780708240000,-500.0,0.00013699,2]
[424260992,1780708240000,-500.0,0.00013698,2]
[424261024,1780708240000,-500.0,0.00013699,2]
[424260976,1780708240000,-500.0,0.00013698,2]
[424260947,1780708240000,-500.0,0.00013698,2]
[424260974,1780708240000,-500.0,0.00013698,2]
[424260931,1780708240000,-500.0,0.00013698,2]
[424260935,1780708240000,-500.0,0.00013698,2]
[424260933,1780708240000,-500.0,0.00013698,2]
[424260937,1780708240000,-500.0,0.00013698,2]
[424260939,1780708240000,-500.0,0.00013698,2]
[424260927,1780708240000,-500.0,0.00013698,2]
[424260929,1780708240000,-500.0,0.00013698,2]
[424260941,1780708240000,-500.0,0.00013698,2]
[424260943,1780708240000,-392.75,0.00013698,2]
[424260949,1780708240000,-500.0,0.00013698,2]
[424260964,1780708240000,-500.0,0.00013698,2]
[424260970,1780708240000,-500.0,0.00013698,2]
[424260956,1780708240000,-500.0,0.00013698,2]
[424260980,1780708240000,-500.0,0.00013698,2]
[424260965,1780708240000,-500.0,0.00013698,2]
[424260967,1780708240000,-500.0,0.00013698,2]
[424261060,1780708240000,-500.0,0.00013699,2]
[424260951,1780708240000,-500.0,0.00013698,2]
[424260960,1780708240000,-500.0,0.00013698,2]
[424260958,1780708240000,-375.15,0.00013698,2]
[424260962,1780708240000,-500.0,0.00013698,2]
[424260954,1780708240000,-500.0,0.00013698,2]
[424260972,1780708240000,-500.0,0.00013698,2]
[424260982,1780708240000,-500.0,0.00013698,2]
[424260986,1780708240000,-500.0,0.00013698,2]
[424260990,1780708240000,-500.0,0.00013698,2]
[424260988,1780708240000,-500.0,0.00013698,2]
[424260984,1780708240000,-500.0,0.00013698,2]
[424260945,1780708240000,-500.0,0.00013698,2]
[424261064,1780708240000,-397.80637487,0.00013699,2]
[424261019,1780708240000,-500.0,0.00013699,2]
[424261068,1780708240000,-1039.35,0.000137,2]
[424261126,1780708240000,-166.946,0.00015891,2]
[424261128,1780708240000,-246.38,0.00015891,2]
[424261130,1780708240000,-250.0,0.00015891,2]
[424261132,1780708240000,-167.45,0.00015891,2]
[424261136,1780708240000,-188.0,0.00015891,2]
[424261134,1780708240000,-150.0,0.00015891,2]
[424261140,1780708240000,-3553.0,0.00015891,2]
[424261142,1780708240000,-1357.0,0.00015891,2]
[424261138,1780708240000,-151.376,0.00015891,2]
[424261146,1780708240000,-1273.0,0.00015891,2]
[424261144,1780708240000,-382.0,0.00015891,2]
[424261148,1780708240000,-1227.0,0.00015891,2]
[424261150,1780708240000,-300.0,0.00016,2]
[424261152,1780708240000,-212.64799,0.00016,2]
[424261154,1780708240000,-660.83068784,0.00016,2]
[424261156,1780708240000,-660.83068784,0.000161,2]
[424261161,1780708240000,-6337.6,0.00016438,2]
[424261159,1780708240000,-660.83068784,0.000162,2]
[424261157,1780708240000,-9999.99,0.00016116,2]
[424261163,1780708240000,-9329.48,0.00016438,2]
[424261165,1780708240000,-4071.0,0.00016438,2]
[424261169,1780708240000,-168.29,0.00016712,2]
[424261171,1780708240000,-478.92,0.00016767,2]
[424261177,1780708240000,-9329.48,0.00017123,2]
[424261174,1780708240000,-6337.6,0.00017123,2]
[424261173,1780708240000,-60016.73136667,0.00016909,2]
[424261167,1780708240000,-900.0,0.00016438,2]
[424261178,1780708240000,-200.0,0.00017282,3]
[424261053,1780708240000,-500.0,0.00013699,2]
[424261110,1780708240000,-150.0,0.00015891,2]
[424261112,1780708240000,-174.0,0.00015891,2]
[424261180,1780708240000,-196.0,0.000174,2]
[424261114,1780708240000,-208.58,0.00015891,2]
[424261108,1780708240000,-150.0,0.00015867,2]
[424261066,1780708240000,-395.0,0.00013699,2]
[424261058,1780708240000,-294.54800094,0.00013699,2]
[424261070,1780708240000,-166.66,0.00013836,2]
[424261055,1780708240000,-500.0,0.00013699,2]
[424261072,1780708240000,-166.66,0.00013973,2]
[424261076,1780708240000,-250.0,0.00014,2]
[424261074,1780708240000,-2000.0,0.0001399,2]
[424261078,1780708240000,-166.66,0.0001411,2]
[424261082,1780708240000,-166.66,0.00014247,2]
[424261080,1780708240000,-366.21584643,0.00014203,2]
[424261084,1780708240000,-166.66,0.00014384,2]
[424261086,1780708240000,-60016.73136667,0.00014464,2]
[424261088,1780708240000,-39468.26079027,0.00014868,2]
[424261051,1780708240000,-500.0,0.00013699,2]
[424261116,1780708240000,-220.0,0.00015891,2]
[424261092,1780708240000,-246.33400204,0.00015,2]
[424261094,1780708240000,-300.0,0.00015,2]
[424261096,1780708240000,-200.0,0.00015,2]
[424261098,1780708240000,-900.0,0.00015068,2]
[424261100,1780708240000,-6072.0,0.00015352,2]
[424261102,1780708240000,-933.0,0.00015352,2]
[424261104,1780708240000,-281.63,0.000155,2]
[424261106,1780708240000,-151.25,0.00015843,2]
[424261090,1780708240000,-369.50100305,0.00015,2]
[424261118,1780708240000,-230.0,0.00015891,2]
[424261120,1780708240000,-250.0,0.00015891,2]
[424261124,1780708240000,-242.103,0.00015891,2]
[424261122,1780708240000,-247.204,0.00015891,2]
[424261240,1780708241000,-3884.45711638,0.00018536,2]
[424261237,1780708241000,-1640.56854359,0.000185,2]
[424261251,1780708241000,-3884.45711638,0.00018742,2]
[424261236,1780708241000,-3884.45711638,0.0001845,2]
[424261238,1780708241000,-1157.17389706,0.000185,2]
[424261233,1780708241000,-163.16758204,0.000184,2]
[424261228,1780708241000,-933.0,0.00018352,2]
[424261244,1780708241000,-5800.0,0.00018669,2]
[424261245,1780708241000,-5800.0,0.00018678,2]
[424261234,1780708241000,-3870.58233412,0.000184,2]
[424261232,1780708241000,-1157.17389706,0.000184,2]
[424261230,1780708241000,-3884.45711638,0.00018361,2]
[424261235,1780708241000,-4071.0,0.0001841,2]
[424261239,1780708241000,-3884.45711638,0.00018512,2]
[424261247,1780708241000,-3884.45711638,0.00018691,2]
[424261241,1780708241000,-3884.45711638,0.00018583,2]
[424261243,1780708241000,-3884.45711638,0.00018611,2]
[424261246,1780708241000,-5800.0,0.00018686,2]
[424261255,1780708241000,-3884.45711638,0.00018824,2]
[424261248,1780708241000,-5800.0,0.00018695,2]
[424261256,1780708241000,-756.67,0.00018837,2]
[424261257,1780708241000,-3884.45711638,0.00018839,2]
[424261249,1780708241000,-1640.56854359,0.000187,2]
[424261254,1780708241000,-3870.58233412,0.000188,2]
[424261252,1780708241000,-3884.45711638,0.0001878,2]
[424261250,1780708241000,-1157.17389706,0.000187,2]
[424261253,1780708241000,-3884.45711638,0.00018789,2]
[424261231,1780708241000,-1640.56854359,0.000184,2]
[424261242,1780708241000,-3870.58233412,0.000186,2]
[424261229,1780708241000,-3884.45711638,0.00018357,2]
[424261205,1780708241000,-350.0,0.00018,2]
[424261225,1780708241000,-3884.45711638,0.0001824,2]
[424261259,1780708241000,-150.0,0.00018891,2]
[424261192,1780708241000,-3870.58233412,0.000177,2]
[424261193,1780708241000,-6337.62,0.00017808,2]
[424261191,1780708241000,-196.0,0.000177,2]
[424261194,1780708241000,-9329.5,0.00017808,2]
[424261195,1780708241000,-196.0,0.000179,2]
[424261196,1780708241000,-3870.58233412,0.000179,2]
[424261182,1780708241000,-3870.58233412,0.000174,2]
[424261187,1780708241000,-3870.58233412,0.000175,2]
[424261185,1780708241000,-196.0,0.000175,2]
[424261189,1780708241000,-1039.35,0.000175,2]
[424261190,1780708241000,-39468.26079027,0.00017515,2]
[424261201,1780708241000,-163.16758204,0.00018,2]
[424261226,1780708241000,-3884.45711638,0.00018314,2]
[424261197,1780708241000,-1640.56854359,0.00018,2]
[424261210,1780708241000,-3884.45711638,0.00018043,2]
[424261208,1780708241000,-200.0,0.00018,2]
[424261217,1780708241000,-1124.0,0.00018122,2]
[424261220,1780708241000,-3884.45711638,0.00018197,2]
[424261213,1780708241000,-200.0,0.00018054,2]
[424261212,1780708241000,-3884.45711638,0.00018051,2]
[424261219,1780708241000,-3884.45711638,0.00018179,2]
[424261215,1780708241000,-3870.58233412,0.000181,2]
[424261221,1780708241000,-1640.56854359,0.000182,2]
[424261222,1780708241000,-1157.17389706,0.000182,2]
[424261223,1780708241000,-163.16758204,0.000182,2]
[424261224,1780708241000,-3870.58233412,0.000182,2]
[424261227,1780708241000,-6072.0,0.00018352,2]
[424261199,1780708241000,-1157.17389706,0.00018,2]
[424261267,1780708241000,-150.0,0.00018891,2]
[424261302,1780708241000,-151.0,0.00019093,2]
[424261260,1780708241000,-150.0,0.00018891,2]
[424261291,1780708241000,-151.0,0.00019093,2]
[424261292,1780708241000,-151.0,0.00019093,2]
[424261293,1780708241000,-151.0,0.00019093,2]
[424261294,1780708241000,-151.0,0.00019093,2]
[424261295,1780708241000,-151.0,0.00019093,2]
[424261301,1780708241000,-151.0,0.00019093,2]
[424261299,1780708241000,-151.0,0.00019093,2]
[424261303,1780708241000,-151.0,0.00019093,2]
[424261300,1780708241000,-151.0,0.00019093,2]
[424261310,1780708241000,-500.0,0.00019178,2]
[424261305,1780708241000,-151.0,0.00019093,2]
[424261306,1780708241000,-151.0,0.00019093,2]
[424261312,1780708241000,-500.0,0.00019178,2]
[424261285,1780708241000,-3884.45711638,0.0001908,2]
[424261311,1780708241000,-500.0,0.00019178,2]
[424261309,1780708241000,-3884.45711638,0.0001912,2]
[424261307,1780708241000,-1157.17389706,0.000191,2]
[424261314,1780708241000,-500.0,0.00019178,2]
[424261313,1780708241000,-500.0,0.00019178,2]
[424261316,1780708241000,-500.0,0.00019178,2]
[424261322,1780708241000,-500.0,0.00019178,2]
[424261318,1780708241000,-500.0,0.00019178,2]
[424261315,1780708241000,-500.0,0.00019178,2]
[424261317,1780708241000,-500.0,0.00019178,2]
[424261321,1780708241000,-500.0,0.00019178,2]
[424261319,1780708241000,-500.0,0.00019178,2]
[424261320,1780708241000,-500.0,0.00019178,2]
[424261270,1780708241000,-150.0,0.00018891,2]
[424261308,1780708241000,-1039.35,0.000191,2]
[424261290,1780708241000,-151.0,0.00019093,2]
[424261304,1780708241000,-151.0,0.00019093,2]
[424261298,1780708241000,-151.0,0.00019093,2]
[424261288,1780708241000,-151.0,0.00019093,2]
[424261268,1780708241000,-150.0,0.00018891,2]
[424261261,1780708241000,-150.0,0.00018891,2]
[424261269,1780708241000,-150.0,0.00018891,2]
[424261265,1780708241000,-150.0,0.00018891,2]
[424261263,1780708241000,-150.0,0.00018891,2]
[424261264,1780708241000,-150.0,0.00018891,2]
[424261262,1780708241000,-150.0,0.00018891,2]
[424261266,1780708241000,-150.0,0.00018891,2]
[424261271,1780708241000,-3553.0,0.00018891,2]
[424261275,1780708241000,-1227.0,0.00018891,2]
[424261276,1780708241000,-1157.17389706,0.000189,2]
[424261274,1780708241000,-1273.0,0.00018891,2]
[424261277,1780708241000,-3884.45711638,0.00018925,2]
[424261273,1780708241000,-382.0,0.00018891,2]
[424261258,1780708241000,-150.0,0.00018891,2]
[424261289,1780708241000,-151.0,0.00019093,2]
[424261272,1780708241000,-1357.0,0.00018891,2]
[424261287,1780708241000,-151.0,0.00019093,2]
[424261296,1780708241000,-151.0,0.00019093,2]
[424261297,1780708241000,-151.0,0.00019093,2]
[424261284,1780708241000,-1124.0,0.00019076,2]
[424261283,1780708241000,-3884.45711638,0.00019072,2]
[424261286,1780708241000,-3884.45711638,0.0001909,2]
[424261282,1780708241000,-3884.45711638,0.00019065,2]
[424261279,1780708241000,-3884.45711638,0.00019,2]
[424261278,1780708241000,-3884.45711638,0.00018965,2]
[424261280,1780708241000,-3870.58233412,0.00019,2]
[424261281,1780708241000,-3884.45711638,0.00019009,2]
[424261373,1780708242000,-500.0,0.00019178,2]
[424261364,1780708242000,-500.0,0.00019178,2]
[424261365,1780708242000,-500.0,0.00019178,2]
[424261361,1780708242000,-500.0,0.00019178,2]
[424261363,1780708242000,-500.0,0.00019178,2]
[424261372,1780708242000,-500.0,0.00019178,2]
[424261356,1780708242000,-500.0,0.00019178,2]
[424261358,1780708242000,-500.0,0.00019178,2]
[424261360,1780708242000,-500.0,0.00019178,2]
[424261355,1780708242000,-500.0,0.00019178,2]
[424261357,1780708242000,-500.0,0.00019178,2]
[424261374,1780708242000,-500.0,0.00019178,2]
[424261359,1780708242000,-500.0,0.00019178,2]
[424261362,1780708242000,-500.0,0.00019178,2]
[424261371,1780708242000,-500.0,0.00019178,2]
[424261375,1780708242000,-500.0,0.00019178,2]
[424261369,1780708242000,-500.0,0.00019178,2]
[424261366,1780708242000,-500.0,0.00019178,2]
[424261367,1780708242000,-500.0,0.00019178,2]
[424261368,1780708242000,-500.0,0.00019178,2]
[424261376,1780708242000,-500.0,0.00019178,2]
[424261378,1780708242000,-500.0,0.00019178,2]
[424261380,1780708242000,-500.0,0.00019178,2]
[424261377,1780708242000,-500.0,0.00019178,2]
[424261379,1780708242000,-500.0,0.00019178,2]
[424261381,1780708242000,-500.0,0.00019178,2]
[424261382,1780708242000,-500.0,0.00019178,2]
[424261386,1780708242000,-500.0,0.00019178,2]
[424261383,1780708242000,-500.0,0.00019178,2]
[424261370,1780708242000,-500.0,0.00019178,2]
[424261354,1780708242000,-500.0,0.00019178,2]
[424261324,1780708242000,-500.0,0.00019178,2]
[424261353,1780708242000,-500.0,0.00019178,2]
[424261384,1780708242000,-500.0,0.00019178,2]
[424261323,1780708242000,-500.0,0.00019178,2]
[424261325,1780708242000,-500.0,0.00019178,2]
[424261331,1780708242000,-500.0,0.00019178,2]
[424261332,1780708242000,-500.0,0.00019178,2]
[424261328,1780708242000,-500.0,0.00019178,2]
[424261326,1780708242000,-500.0,0.00019178,2]
[424261335,1780708242000,-500.0,0.00019178,2]
[424261327,1780708242000,-500.0,0.00019178,2]
[424261336,1780708242000,-500.0,0.00019178,2]
[424261333,1780708242000,-500.0,0.00019178,2]
[424261329,1780708242000,-500.0,0.00019178,2]
[424261330,1780708242000,-500.0,0.00019178,2]
[424261334,1780708242000,-500.0,0.00019178,2]
[424261338,1780708242000,-500.0,0.00019178,2]
[424261347,1780708242000,-500.0,0.00019178,2]
[424261348,1780708242000,-500.0,0.00019178,2]
[424261343,1780708242000,-500.0,0.00019178,2]
[424261340,1780708242000,-500.0,0.00019178,2]
[424261337,1780708242000,-500.0,0.00019178,2]
[424261344,1780708242000,-500.0,0.00019178,2]
[424261341,1780708242000,-500.0,0.00019178,2]
[424261339,1780708242000,-500.0,0.00019178,2]
[424261346,1780708242000,-500.0,0.00019178,2]
[424261345,1780708242000,-500.0,0.00019178,2]
[424261342,1780708242000,-500.0,0.00019178,2]
[424261349,1780708242000,-500.0,0.00019178,2]
[424261351,1780708242000,-500.0,0.00019178,2]
[424261352,1780708242000,-500.0,0.00019178,2]
[424261350,1780708242000,-500.0,0.00019178,2]
[424261385,1780708242000,-500.0,0.00019178,2]
[424261437,1780708242000,-3833.0,0.0002,2]
[424261391,1780708242000,-500.0,0.00019178,2]
[424261416,1780708242000,-60016.73136667,0.00019355,2]
[424261423,1780708242000,-400.0,0.0002,2]
[424261426,1780708242000,-1014.0,0.0002,2]
[424261428,1780708242000,-2590.0,0.0002,2]
[424261421,1780708242000,-651.34447119,0.0002,2]
[424261424,1780708242000,-1130.0,0.0002,2]
[424261425,1780708242000,-791.0,0.0002,2]
[424261430,1780708242000,-3440.0,0.0002,2]
[424261440,1780708242000,-268.9,0.0002,9]
[424261429,1780708242000,-494.674534,0.0002,2]